fUSD/lending_fUSD_20241121
["ID","MTS","AMOUNT","RATE_DAILY","PERIOD"]
[342925578,1732209062914,-500.0,0.00038904,11]
[342925579,1732209062924,-637.54198275,0.00038904,11]
[342925580,1732209062934,-500.0,0.00038904,11]
[342925581,1732209062944,-500.0,0.00038904,11]
[342925582,1732209062959,-500.0,0.00038904,11]
[342925583,1732209062969,-500.0,0.00038904,11]
[342925584,1732209062980,-500.0,0.00038904,11]
[342925585,1732209063167,-805.63,0.00038904,11]
[342925586,1732209063178,-500.0,0.00038904,11]
[342925587,1732209063187,-524.65465916,0.00038904,11]
[342925588,1732209063197,-500.0,0.00038904,11]
[342925589,1732209063210,-500.0,0.00038904,11]
[342925590,1732209063219,-500.0,0.00038904,11]
[342925591,1732209063229,-222.540981,0.00038904,14]
[342925592,1732209063238,-500.0,0.00038904,11]
[342925593,1732209063248,-222.540981,0.00038904,14]
[342925594,1732209063258,-222.540981,0.00038904,14]
[342925595,1732209063268,-500.0,0.00038904,11]
[342925596,1732209063277,-500.0,0.00038904,11]
[342925597,1732209063287,-222.540981,0.00038904,14]
[342925598,1732209063296,-222.540981,0.00038904,14]
[342925599,1732209063306,-222.540981,0.00038904,14]
[342925600,1732209063315,-1092.26,0.00038904,11]
[342925601,1732209063324,-500.0,0.00038904,11]
[342925602,1732209063334,-500.0,0.00038904,11]
[342925603,1732209063343,-500.0,0.00038904,11]
[342925604,1732209063352,-500.0,0.00038904,11]
[342925605,1732209063361,-500.0,0.00038904,11]
[342925606,1732209063371,-468.54366193,0.00038904,11]
[342925607,1732209063380,-500.0,0.00038904,11]
[342925608,1732209063389,-500.0,0.00038904,11]
[342925609,1732209063398,-500.0,0.00038904,11]
[342925610,1732209063409,-851.08,0.00038904,11]
[342925611,1732209063419,-500.0,0.00038904,11]
[342925612,1732209063429,-825.54,0.00038904,11]
[342925613,1732209063438,-500.0,0.00038904,11]
[342925614,1732209063447,-500.0,0.00038904,11]
[342925615,1732209063460,-500.0,0.00038904,11]
[342925616,1732209063470,-500.0,0.00038904,11]
[342925617,1732209063479,-510.15,0.00038904,11]
[342925618,1732209063489,-500.0,0.00038904,11]
[342925619,1732209063499,-500.0,0.00038904,11]
[342925620,1732209063509,-500.0,0.00038904,11]
[342925621,1732209063518,-589.93,0.00038904,11]
[342925622,1732209063528,-500.0,0.00038904,11]
[342925623,1732209063538,-1030.83,0.00038904,11]
[342925624,1732209063547,-833.36,0.00038904,11]
[342925625,1732209063557,-500.0,0.00038904,11]
[342925626,1732209063567,-200.0,0.00038904,7]
[342925627,1732209063577,-500.0,0.00038904,11]
[342925628,1732209063587,-500.0,0.00038904,11]
[342925629,1732209063596,-861.33,0.00038904,11]
[342925630,1732209063605,-500.0,0.00038904,11]
[342925631,1732209063615,-500.0,0.00038904,11]
[342925632,1732209063624,-500.0,0.00038904,11]
[342925633,1732209063633,-783.55,0.00038904,11]
[342925634,1732209063642,-500.0,0.00038904,11]
[342925635,1732209063651,-500.0,0.00038904,11]
[342925636,1732209063661,-500.0,0.00038904,11]
[342925637,1732209063670,-500.0,0.00038904,11]
[342925638,1732209063679,-500.0,0.00038904,11]
[342925639,1732209063688,-500.0,0.00038904,11]
[342925640,1732209063698,-550.09,0.00038904,11]
[342925641,1732209063709,-500.0,0.00038904,11]
[342925642,1732209063719,-617.27690794,0.00038904,11]
[342925643,1732209063728,-500.0,0.00038904,11]
[342925644,1732209063738,-500.0,0.00038904,11]
[342925645,1732209063747,-500.0,0.00038904,11]
[342925646,1732209063758,-500.0,0.00038904,11]
[342925647,1732209063768,-500.0,0.00038904,11]
[342925648,1732209063778,-186.16101806,0.00038904,11]
[342925649,1732209063787,-500.0,0.00038904,11]
[342925650,1732209063796,-500.0,0.00038904,11]
[342925651,1732209063806,-164.56391326,0.00038904,11]
[342925652,1732209063815,-500.0,0.00038904,11]
[342925653,1732209063825,-500.0,0.00038904,11]
[342925654,1732209063834,-500.0,0.00038904,11]
[342925655,1732209063844,-1697.17,0.00038904,11]
[342925656,1732209063853,-500.0,0.00038904,11]
[342925657,1732209063863,-500.0,0.00038904,11]
[342925658,1732209063873,-500.0,0.00038904,11]
[342925659,1732209063882,-500.0,0.00038904,11]
[342925660,1732209063892,-500.0,0.00038904,11]
[342925661,1732209063901,-500.0,0.00038904,11]
[342925662,1732209063911,-500.0,0.00038904,11]
[342925663,1732209063920,-500.0,0.00038904,11]
[342925664,1732209063929,-520.06,0.00038904,11]
[342925665,1732209063939,-500.0,0.00038904,11]
[342925666,1732209063948,-500.0,0.00038904,11]
[342925667,1732209063962,-500.0,0.00038904,11]
[342925668,1732209063972,-500.0,0.00038904,11]
[342925669,1732209063982,-500.0,0.00038904,11]
[342925670,1732209063993,-500.0,0.00038904,11]
[342925671,1732209064003,-500.0,0.00038904,11]
[342925672,1732209064012,-500.0,0.00038904,11]
[342925673,1732209064022,-500.0,0.00038904,11]
[342925674,1732209064031,-500.0,0.00038904,11]
[342925675,1732209064040,-557.33,0.00038904,11]
[342925676,1732209064050,-500.0,0.00038904,11]
[342925677,1732209064059,-500.0,0.00038904,11]
[342925678,1732209064068,-500.0,0.00038904,11]
[342925679,1732209064078,-811.45,0.00038904,11]
[342925680,1732209064088,-500.0,0.00038904,11]
[342925681,1732209064097,-500.0,0.00038904,11]
[342925682,1732209064106,-500.0,0.00038904,11]
[342925683,1732209064116,-500.0,0.00038904,11]
[342925684,1732209064125,-500.0,0.00038904,11]
[342925685,1732209064134,-151.0,0.00038904,14]
[342925686,1732209064144,-167.77235,0.00038904,14]
[342925687,1732209064153,-500.0,0.00038904,11]
[342925688,1732209064162,-500.0,0.00038904,11]
[342925689,1732209064171,-500.0,0.00038904,11]
[342925690,1732209064181,-151.0,0.00038904,14]
[342925691,1732209064190,-835.91,0.00038904,11]
[342925692,1732209064199,-212.436332,0.00038904,14]
[342925693,1732209064215,-500.0,0.00038904,11]
[342925694,1732209064224,-500.0,0.00038904,11]
[342925695,1732209064233,-500.0,0.00038904,11]
[342925696,1732209064242,-683.12,0.00038904,11]
[342925697,1732209064252,-500.0,0.00038904,11]
[342925698,1732209064261,-500.0,0.00038904,11]
[342925699,1732209064270,-796.83,0.00038904,11]
[342925700,1732209064279,-500.0,0.00038904,11]
[342925701,1732209064289,-500.0,0.00038904,11]
[342925702,1732209064298,-500.0,0.00038904,11]
[342925703,1732209064307,-616.1,0.00038904,11]
[342925704,1732209064316,-500.0,0.00038904,11]
[342925705,1732209064326,-500.0,0.00038904,11]
[342925706,1732209064335,-1663.42,0.00038904,11]
[342925707,1732209064344,-500.0,0.00038904,11]
[342925708,1732209064354,-1643.67,0.00038904,11]
[342925709,1732209064364,-2313.94,0.00038904,11]
[342925710,1732209064373,-888.86,0.00038904,11]
[342925711,1732209064383,-500.0,0.00038904,11]
[342925712,1732209064392,-500.0,0.00038904,11]
[342925713,1732209064402,-500.0,0.00038904,11]
[342925714,1732209064412,-500.0,0.00038904,11]
[342925715,1732209064425,-885.6,0.00038904,11]
[342925716,1732209064434,-669.53,0.00038904,11]
[342925717,1732209064443,-1104.14,0.00038904,11]
[342925718,1732209064452,-500.0,0.00038904,11]
[342925719,1732209064466,-500.0,0.00038904,11]
[342925720,1732209064475,-500.0,0.00038904,11]
[342925721,1732209064485,-226.91829376,0.00038904,11]
[342925722,1732209064496,-500.0,0.00038904,11]
[342925723,1732209064506,-500.0,0.00038904,11]
[342925724,1732209064515,-1026.05,0.00038904,11]
[342925725,1732209064525,-500.0,0.00038904,11]
[342925726,1732209064534,-500.0,0.00038904,11]
[342925727,1732209064544,-1369.86,0.00038904,11]
[342925728,1732209064553,-500.0,0.00038904,11]
[342925729,1732209064563,-500.0,0.00038904,11]
[342925730,1732209064572,-500.0,0.00038904,11]
[342925731,1732209064582,-500.0,0.00038904,11]
[342925732,1732209064591,-500.0,0.00038904,11]
[342925733,1732209064601,-1001.34,0.00038904,11]
[342925734,1732209064610,-978.47,0.00038904,11]
[342925735,1732209064619,-508.56,0.00038904,11]
[342925736,1732209064628,-500.0,0.00038904,11]
[342925737,1732209064638,-500.0,0.00038904,11]
[342925738,1732209064647,-500.0,0.00038904,11]
[342925739,1732209064657,-697.15,0.00038904,11]
[342925740,1732209064666,-500.0,0.00038904,11]
[342925741,1732209064675,-500.0,0.00038904,11]
[342925742,1732209064685,-500.0,0.00038904,11]
[342925743,1732209064695,-949.01,0.00038904,11]
[342925744,1732209064708,-500.0,0.00038904,11]
[342925745,1732209064718,-1898.28,0.00038904,11]
[342925746,1732209064727,-4574.36,0.00038904,11]
[342925747,1732209064737,-942.92,0.00038904,11]
[342925748,1732209064747,-500.0,0.00038904,11]
[342925749,1732209064756,-500.0,0.00038904,11]
[342925750,1732209064766,-500.0,0.00038904,11]
[342925751,1732209064776,-2570.19,0.00038904,11]
[342925752,1732209064785,-13167.65,0.00038904,2]
[342925753,1732209064795,-500.0,0.00038904,11]
[342925754,1732209064805,-500.0,0.00038904,11]
[342925755,1732209064814,-685.7,0.00038904,11]
[342925756,1732209064824,-500.0,0.00038904,11]
[342925757,1732209064834,-500.0,0.00038904,11]
[342925758,1732209064844,-500.0,0.00038904,11]
[342925759,1732209064854,-500.0,0.00038904,11]
[342925760,1732209064863,-692.64,0.00038904,11]
[342925761,1732209064873,-500.0,0.00038904,11]
[342925762,1732209064882,-500.0,0.00038904,11]
[342925763,1732209064891,-500.0,0.00038904,11]
[342925764,1732209064901,-500.0,0.00038904,11]
[342925765,1732209064911,-300.0,0.00038904,11]
[342925766,1732209064920,-544.43,0.00038904,11]
[342925767,1732209064929,-500.0,0.00038904,11]
[342925768,1732209064939,-1040.7,0.00038904,11]
[342925769,1732209064949,-503.62,0.00038904,11]
[342925770,1732209064961,-500.0,0.00038904,11]
[342925771,1732209064971,-500.0,0.00038904,11]
[342925772,1732209064981,-500.0,0.00038904,11]
[342925773,1732209064990,-500.0,0.00038904,11]
[342925774,1732209065000,-500.0,0.00038904,120]
[342925775,1732209065009,-1256.91,0.00038904,11]
[342925776,1732209065018,-500.0,0.00038904,11]
[342925777,1732209065028,-500.0,0.00038904,11]
[342925778,1732209065037,-644.06,0.00038904,11]
[342925779,1732209065046,-600.51881549,0.00038904,11]
[342925780,1732209065055,-500.0,0.00038904,11]
[342925781,1732209065065,-500.0,0.00038904,11]
[342925782,1732209065074,-500.0,0.00038904,11]
[342925783,1732209065084,-1313.76,0.00038904,11]
[342925784,1732209065093,-500.0,0.00038904,11]
[342925785,1732209065103,-500.0,0.00038904,11]
[342925786,1732209065113,-507.04,0.00038904,11]
[342925787,1732209065122,-500.0,0.00038904,11]
[342925788,1732209065131,-500.0,0.00038904,11]
[342925789,1732209065140,-500.0,0.00038904,11]
[342925790,1732209065150,-500.0,0.00038904,11]
[342925791,1732209065159,-500.0,0.00038904,11]
[342925792,1732209065169,-1226.07,0.00038904,11]
[342925793,1732209065179,-500.0,0.00038904,11]
[342925794,1732209065188,-500.0,0.00038904,11]
[342925795,1732209065197,-500.0,0.00038904,11]
[342925796,1732209065208,-628.62,0.00038904,11]
[342925797,1732209065217,-500.0,0.00038904,11]
[342925798,1732209065226,-531.648372,0.00038904,14]
[342925799,1732209065235,-531.648372,0.00038904,14]
[342925800,1732209065245,-500.0,0.00038904,11]
[342925801,1732209065254,-500.0,0.00038904,11]
[342925802,1732209065264,-531.648372,0.00038904,14]
[342925803,1732209065273,-531.64838,0.00038904,14]
[342925804,1732209065282,-852.45,0.00038904,11]
[342925805,1732209065291,-787.31,0.00038904,11]
[342925806,1732209065301,-1429.93,0.00038904,11]
[342925807,1732209065310,-2495.52,0.00038904,11]
[342925808,1732209065319,-500.0,0.00038904,11]
[342925809,1732209065329,-500.0,0.00038904,11]
[342925810,1732209065338,-500.0,0.00038904,11]
[342925811,1732209065347,-500.0,0.00038904,11]
[342925812,1732209065356,-500.0,0.00038904,11]
[342925813,1732209065366,-500.0,0.00038904,11]
[342925814,1732209065376,-550.28,0.00038904,11]
[342925815,1732209065385,-500.0,0.00038904,11]
[342925816,1732209065395,-500.0,0.00038904,11]
[342925817,1732209065404,-500.0,0.00038904,11]
[342925818,1732209065414,-500.0,0.00038904,11]
[342925819,1732209065427,-500.0,0.00038904,11]
[342925820,1732209065436,-500.0,0.00038904,11]
[342925821,1732209065445,-1672.68,0.00038904,11]
[342925822,1732209065459,-500.0,0.00038904,11]
[342925823,1732209065471,-500.0,0.00038904,11]
[342925824,1732209065480,-500.0,0.00038904,11]
[342925825,1732209065490,-500.0,0.00038904,11]
[342925826,1732209065500,-500.0,0.00038904,11]
[342925827,1732209065510,-500.0,0.00038904,11]
[342925828,1732209065519,-500.0,0.00038904,11]
[342925829,1732209065528,-500.0,0.00038904,11]
[342925830,1732209065538,-500.0,0.00038904,11]
[342925831,1732209065547,-500.0,0.00038904,11]
[342925832,1732209065556,-500.0,0.00038904,11]
[342925833,1732209065565,-500.0,0.00038904,11]
[342925834,1732209065574,-500.0,0.00038904,11]
[342925835,1732209065583,-500.0,0.00038904,11]
[342925836,1732209065592,-540.51,0.00038904,11]
[342925837,1732209065601,-2479.94,0.00038904,11]
[342925838,1732209065611,-500.0,0.00038904,11]
[342925839,1732209065620,-500.0,0.00038904,11]
[342925840,1732209065629,-330.57497986,0.00038904,11]
[342925841,1732209065638,-500.0,0.00038904,11]
[342925842,1732209065648,-500.0,0.00038904,11]
[342925843,1732209065657,-500.0,0.00038904,11]
[342925844,1732209065666,-500.0,0.00038904,11]
[342925845,1732209065675,-626.27966588,0.00038904,11]
[342925846,1732209065684,-579.21,0.00038904,11]
[342925847,1732209065694,-556.44,0.00038904,11]
[342925848,1732209065703,-500.0,0.00038904,11]
[342925849,1732209065720,-1795.76,0.00038904,11]
[342925850,1732209065730,-792.089825,0.00038904,14]
[342925851,1732209065739,-500.0,0.00038904,11]
[342925852,1732209065748,-792.089825,0.00038904,14]
[342925853,1732209065758,-634.34,0.00038904,11]
[342925854,1732209065767,-1015.2,0.00038904,11]
[342925855,1732209065777,-500.0,0.00038904,11]
[342925856,1732209065786,-792.089825,0.00038904,14]
[342925857,1732209065796,-792.089833,0.00038904,14]
[342925858,1732209065806,-500.0,0.00038904,11]
[342925859,1732209065815,-2148.5,0.00038904,11]
[342925860,1732209065824,-500.0,0.00038904,11]
[342925861,1732209065833,-2009.83,0.00038904,11]
[342925862,1732209065842,-500.0,0.00038904,11]
[342925863,1732209065851,-2980.46,0.00038904,11]
[342925864,1732209065860,-500.0,0.00038904,11]
[342925865,1732209065869,-580.37,0.00038904,11]
[342925866,1732209065878,-500.0,0.00038904,11]
[342925867,1732209065887,-500.0,0.00038904,11]
[342925868,1732209065897,-500.0,0.00038904,11]
[342925869,1732209065906,-500.0,0.00038904,11]
[342925870,1732209065915,-12761.51,0.00038904,11]
[342925871,1732209065924,-500.0,0.00038904,11]
[342925872,1732209065934,-500.0,0.00038904,11]
[342925873,1732209065944,-500.0,0.00038904,11]
[342925874,1732209065953,-500.0,0.00038904,11]
[342925875,1732209065970,-500.0,0.00038904,11]
[342925876,1732209065979,-922.76,0.00038904,11]
[342925877,1732209065988,-500.0,0.00038904,11]
[342925878,1732209065998,-952.81,0.00038904,11]
[342925879,1732209066007,-500.0,0.00038904,11]
[342925880,1732209066016,-500.0,0.00038904,11]
[342925881,1732209066026,-500.0,0.00038904,11]
[342925882,1732209066035,-500.0,0.00038904,11]
[342925883,1732209066043,-2728.46,0.00038904,11]
[342925884,1732209066053,-929.41,0.00038904,11]
[342925885,1732209066061,-586.52457902,0.00038904,11]
[342925886,1732209066070,-1595.23,0.00038904,11]
[342925887,1732209066079,-500.0,0.00038904,11]
[342925888,1732209066089,-431.35148088,0.00038904,11]
[342925889,1732209066098,-500.0,0.00038904,11]
[342925890,1732209066107,-486.03513014,0.00038904,11]
[342925891,1732209066116,-500.0,0.00038904,11]
[342925892,1732209066125,-500.0,0.00038904,11]
[342925893,1732209066134,-500.0,0.00038904,11]
[342925894,1732209066143,-500.0,0.00038904,11]
[342925895,1732209066152,-500.0,0.00038904,11]
[342925896,1732209066161,-1432.21,0.00038904,11]
[342925897,1732209066170,-500.0,0.00038904,11]
[342925898,1732209066179,-500.0,0.00038904,11]
[342925899,1732209066188,-185.44682504,0.00038904,11]
[342925900,1732209066198,-500.0,0.00038904,11]
[342925901,1732209066210,-942.0,0.00038904,11]
[342925902,1732209066219,-500.0,0.00038904,11]
[342925903,1732209066228,-500.0,0.00038904,11]
[342925904,1732209066237,-500.0,0.00038904,11]
[342925905,1732209066246,-500.0,0.00038904,11]
[342925906,1732209066255,-516.79,0.00038904,11]
[342925907,1732209066264,-500.0,0.00038904,11]
[342925908,1732209066274,-500.0,0.00038904,11]
[342925909,1732209066284,-500.0,0.00038904,11]
[342925910,1732209066293,-500.0,0.00038904,11]
[342925911,1732209066303,-500.0,0.00038904,11]
[342925912,1732209066312,-500.0,0.00038904,11]
[342925913,1732209066322,-500.0,0.00038904,11]
[342925914,1732209066332,-1252.79,0.00038904,11]
[342925915,1732209066508,-500.0,0.00038904,11]
[342925916,1732209066519,-1321.17,0.00038904,11]
[342925917,1732209066529,-500.0,0.00038904,11]
[342925918,1732209066538,-268.808484,0.00038904,14]
[342925919,1732209066548,-520.13,0.00038904,11]
[342925920,1732209066557,-512.26,0.00038904,11]
[342925921,1732209066566,-741.51,0.00038904,11]
[342925922,1732209066576,-1633.8,0.00038904,11]
[342925923,1732209066585,-190.77335395,0.00038904,11]
[342925924,1732209066595,-500.0,0.00038904,11]
[342925925,1732209066603,-500.0,0.00038904,11]
[342925926,1732209066613,-500.0,0.00038904,11]
[342925927,1732209066623,-500.0,0.00038904,11]
[342925928,1732209066632,-500.0,0.00038904,11]
[342925929,1732209066641,-500.0,0.00038904,11]
[342925930,1732209066651,-500.0,0.00038904,11]
[342925931,1732209066661,-734.45,0.00038904,11]
[342925932,1732209066671,-500.0,0.00038904,11]
[342925933,1732209066680,-960.64,0.00038904,11]
[342925934,1732209066689,-500.0,0.00038904,11]
[342925935,1732209066699,-500.0,0.00038904,11]
[342925936,1732209066712,-500.0,0.00038904,11]
[342925937,1732209066722,-616.56,0.00038904,11]
[342925938,1732209066732,-500.0,0.00038904,11]
[342925939,1732209066741,-752.12,0.00038904,11]
[342925940,1732209066751,-1619.83,0.00038904,11]
[342925941,1732209066760,-758.7,0.00038904,11]
[342925942,1732209066770,-500.0,0.00038904,11]
[342925943,1732209066780,-3730.7,0.00038904,11]
[342925944,1732209066789,-500.0,0.00038904,11]
[342925945,1732209066799,-875.11,0.00038904,11]
[342925946,1732209066809,-500.0,0.00038904,11]
[342925947,1732209066818,-604.53,0.00038904,11]
[342925948,1732209066829,-151.0,0.00038904,14]
[342925949,1732209066838,-500.0,0.00038904,11]
[342925950,1732209066848,-208.428985,0.00038904,14]
[342925951,1732209066858,-4315.98,0.00038904,11]
[342925952,1732209066868,-500.0,0.00038904,11]
[342925953,1732209066879,-500.0,0.00038904,11]
[342925954,1732209066890,-590.5,0.00038904,11]
[342925955,1732209066901,-500.0,0.00038904,11]
[342925956,1732209066913,-500.0,0.00038904,11]
[342925957,1732209066925,-1367.1,0.00038904,11]
[342925958,1732209066937,-500.0,0.00038904,11]
[342925959,1732209066949,-500.0,0.00038904,11]
[342925960,1732209066970,-1000.0,0.00038904,11]
[342925961,1732209066981,-500.0,0.00038904,11]
[342925962,1732209066991,-500.0,0.00038904,7]
[342925963,1732209067002,-500.0,0.00038904,11]
[342925964,1732209067013,-500.0,0.00038904,11]
[342925965,1732209067023,-1811.26,0.00038904,11]
[342925966,1732209067033,-510.57,0.00038904,11]
[342925967,1732209067044,-659.28,0.00038904,11]
[342925968,1732209067054,-1362.55,0.00038904,11]
[342925969,1732209067064,-500.0,0.00038904,11]
[342925970,1732209067074,-3341.95,0.00038904,11]
[342925971,1732209067084,-1533.44,0.00038904,11]
[342925972,1732209067094,-500.0,0.00038904,11]
[342925973,1732209067104,-779.74,0.00038904,11]
[342925974,1732209067114,-500.0,0.00038904,11]
[342925975,1732209067124,-500.0,0.00038904,11]
[342925976,1732209067134,-500.0,0.00038904,11]
[342925977,1732209067145,-500.0,0.00038904,11]
[342925978,1732209067155,-1720.08,0.00038904,11]
[342925979,1732209067164,-490.93,0.00038904,11]
[342925980,1732209067175,-500.0,0.00038904,11]
[342925981,1732209067184,-532.68907741,0.00038904,11]
[342925982,1732209067193,-1498.59,0.00038904,11]
[342925983,1732209067203,-1471.05,0.00038904,11]
[342925984,1732209067217,-792.02,0.00038904,11]
[342925985,1732209067227,-1182.34,0.00038904,11]
[342925986,1732209067237,-837.52,0.00038904,11]
[342925987,1732209067247,-1211.37,0.00038904,11]
[342925988,1732209067257,-500.0,0.00038904,11]
[342925989,1732209067266,-500.0,0.00038904,11]
[342925990,1732209067276,-500.0,0.00038904,11]
[342925991,1732209067285,-500.0,0.00038904,11]
[342925992,1732209067294,-500.0,0.00038904,11]
[342925993,1732209067304,-500.0,0.00038904,11]
[342925994,1732209067314,-500.0,0.00038904,11]
[342925995,1732209067323,-199.10446854,0.00038904,11]
[342925996,1732209067333,-770.8,0.00038904,11]
[342925997,1732209067342,-670.46,0.00038904,11]
[342925998,1732209067352,-500.0,0.00038904,11]
[342925999,1732209067361,-500.0,0.00038904,11]
[342926000,1732209067370,-500.0,0.00038904,11]
[342926001,1732209067379,-500.0,0.00038904,11]
[342926002,1732209067388,-500.0,0.00038904,11]
[342926003,1732209067398,-1008.56,0.00038904,11]
[342926004,1732209067408,-500.0,0.00038904,2]
[342926005,1732209067418,-500.0,0.00038904,11]
[342926006,1732209067430,-500.0,0.00038904,11]
[342926007,1732209067440,-500.0,0.00038904,11]
[342926008,1732209067449,-4535.34,0.00038904,11]
[342926009,1732209067460,-500.0,0.00038904,11]
[342926010,1732209067469,-944.88,0.00038904,11]
[342926011,1732209067479,-500.0,0.00038904,11]
[342926012,1732209067488,-500.0,0.00038904,11]
[342926013,1732209067498,-500.0,0.00038904,11]
[342926014,1732209067511,-500.0,0.00038904,11]
[342926015,1732209067520,-4492.75,0.00038904,11]
[342926016,1732209067529,-500.0,0.00038904,11]
[342926017,1732209067539,-983.56,0.00038904,11]
[342926018,1732209067548,-976.54,0.00038904,11]
[342926019,1732209067557,-500.0,0.00038904,11]
[342926020,1732209067567,-500.0,0.00038904,11]
[342926021,1732209067576,-1954.58,0.00038904,11]
[342926022,1732209067586,-500.0,0.00038904,11]
[342926023,1732209067596,-500.0,0.00038904,11]
[342926024,1732209067605,-13523.53,0.00038904,11]
[342926025,1732209067615,-1112.73,0.00038904,11]
[342926026,1732209067624,-500.0,0.00038904,11]
[342926027,1732209067634,-1072.76,0.00038904,11]
[342926028,1732209067643,-4328.35520924,0.00038942,15]
[342926029,1732209067652,-5170.0231278,0.00038943,2]
[342926030,1732209067662,-618.28318401,0.00038943,2]
[342926031,1732209067671,-150.0,0.00038981,2]
[342926032,1732209067680,-50000.0,0.00039,5]
[342926033,1732209067690,-50000.0,0.00039,6]
[342926034,1732209067699,-50000.0,0.00039,7]
[342926035,1732209067710,-959.04,0.00039,120]
[342926036,1732209067720,-8954.0,0.00039,30]
[342926037,1732209067729,-151.0,0.00039,14]
[342926038,1732209067739,-151.0,0.00039,14]
[342926039,1732209067748,-184.803886,0.00039,14]
[342926040,1732209067758,-184.803886,0.00039,14]
[342926041,1732209067767,-450.0,0.00039,2]
[342926042,1732209067776,-151.0,0.00039,14]
[342926043,1732209067786,-222.540981,0.00039,14]
[342926044,1732209067795,-222.540985,0.00039,14]
[342926045,1732209067805,-150.24,0.00039013,2]
[342926046,1732209067815,-1125.99,0.00039039,2]
[342926047,1732209067824,-315.8090774,0.00039042,2]
[342926048,1732209067834,-3131.34711926,0.00039078,2]
[342926049,1732209067844,-184.74,0.00039097,120]
[342926050,1732209067853,-500.0,0.00039178,11]
[342926051,1732209067863,-1056.25,0.00039178,11]
[342926052,1732209067873,-500.0,0.00039178,11]
[342926053,1732209067882,-648.09,0.00039178,11]
[342926054,1732209067891,-500.0,0.00039178,11]
[342926055,1732209067901,-389.24231107,0.00039178,11]
[342926056,1732209067911,-574.75,0.00039178,11]
[342926057,1732209067920,-500.0,0.00039178,11]
[342926058,1732209067930,-500.0,0.00039178,11]
[342926059,1732209067940,-805.26,0.00039178,11]
[342926060,1732209067950,-500.0,0.00039178,11]
[342926061,1732209067962,-500.0,0.00039178,11]
[342926062,1732209067971,-500.0,0.00039178,11]
[342926063,1732209067981,-500.0,0.00039178,11]
[342926064,1732209067991,-500.0,0.00039178,11]
[342926065,1732209068001,-740.56,0.00039178,11]
[342926066,1732209068011,-500.0,0.00039178,11]
[342926067,1732209068022,-500.0,0.00039178,11]
[342926068,1732209068032,-500.0,0.00039178,11]
[342926069,1732209068042,-500.0,0.00039178,11]
[342926070,1732209068052,-500.0,0.00039178,11]
[342926071,1732209068062,-500.0,0.00039178,11]
[342926072,1732209068073,-500.0,0.00039178,11]
[342926073,1732209068083,-500.0,0.00039178,11]
[342926074,1732209068094,-500.0,0.00039178,11]
[342926075,1732209068103,-500.0,0.00039178,11]
[342926076,1732209068113,-500.0,0.00039178,11]
[342926077,1732209068122,-500.0,0.00039178,11]